Cogmind - Beta 12 @@@ ROGUE MODE // 2023.05.24 @ 16:50:24 Player: maxwell Result: Self-destructed Performance ------------- Evolutions (8) 4000 Regions Visited (28) 5600 Robots Destroyed (341) 1705 Value Destroyed (15790) 15790 Prototype IDs (74) 1480 Alien Tech Used (1) 200 Bonus (14281) 14281 TOTAL SCORE: 43056 Bonus ------- High Alert Combat Kills 5097 Follower Combat Kills 4429 Entered Garrisons 200 Used RIF Installer 500 Entered DSFs 500 Network Hubs Disabled 400 Aligned with FarCom 300 Met Data Miner 300 Destroyed Z-Imprinter 1000 Triggered Deep Caves Wall 500 Exposed GOLEM Chamber 500 A7 Reached Mainframe 300 Met R17 at Cetus 500 Met R17 at Research 2000 Scanned by Researcher 500 Friendly Fire -2745 Cogmind --------- Core Integrity 1171/1450 Matter 226/300 Energy 177/190 System Corruption 10% Temperature Warning (351) Movement Immobile (Siege) Location -2/Research Parts ------- > --- POWER (3) -------- Light Quantum Reactor > --- PROPULSION (6) --- Biometal Heavy Treads Experimental Biometal Medium Treads Experimental Biometal Medium Treads Experimental Biometal Medium Treads > --- UTILITY (12) ----- Advanced Heat Sink Huge Storage Unit Advanced Signal Interpreter Quantum Capacitor (fused) Advanced Transmission Jammer SHELL Armor Relay Coupler [NC] (14) Relay Coupler [Programmer] (9) > --- WEAPON (3) ------- Enhanced Nova Cannon Advanced Remote Datajack > --- INVENTORY (25) --- Advanced Heavy Siege Treads Energy Well (350) Matter Compressor (250) Improved Signal Interpreter Layered Heavy Armor Plating Antimissile System Authchip [Device] Relay Coupler [NC] (27) Relay Coupler [NC] (35) Relay Coupler [Programmer] (90) Long-range Tractor Beam Hacking Drone Bay (1/1) Enhanced Nova Cannon Enhanced Nova Cannon Smartbomb Launcher Peak State ------------ > --- POWER ------------ Quantum Reactor Quantum Reactor Quantum Reactor > --- PROPULSION ------- Armored Heavy Treads Experimental Biometal Medium Treads Experimental Biometal Medium Treads Experimental Biometal Medium Treads Experimental Biometal Medium Treads > --- UTILITY ---------- Advanced Heat Sink Advanced Cooling System Huge Storage Unit Advanced Signal Interpreter Quantum Capacitor Advanced Transmission Jammer SHELL Armor Relay Coupler [NC] Relay Coupler [Programmer] > --- WEAPON ----------- Enhanced Nova Cannon Potential Cannon > --- INVENTORY -------- Biometal Heavy Treads Advanced Heat Sink Energy Well Matter Compressor Improved Signal Interpreter Layered Medium Armor Plating Layered Heavy Armor Plating Antimissile System Authchip [Device] Relay Coupler [NC] Relay Coupler [NC] Relay Coupler [Programmer] Long-range Tractor Beam Hacking Drone Bay Enhanced Nova Cannon Enhanced Nova Cannon Enhanced Nova Cannon Smartbomb Launcher Datajack Advanced Remote Datajack [Rating: 201] Favorites ----------- Power Hybrid Deuterium Engine Engine Hybrid Deuterium Engine Power Core Reinforced Fission Core Reactor Assembled Flux Generator Propulsion Assembled Alloy Leg Treads Light Treads Leg Assembled Alloy Leg Wheel Wheel Utility Huge Storage Unit Device Advanced Heat Sink Storage Huge Storage Unit Processor Improved Signal Interpreter Hackware Relay Coupler [NC] Protection Layered Medium Armor Plating Weapon Assembled Focal Cannon Energy Gun Precision Beam Rifle Energy Cannon Assembled Focal Cannon Ballistic Gun Autogun Launcher Heavy Rocket Launcher Special Weapon Advanced Remote Datajack Impact Weapon Heavy Hammer Special Melee Weapon Datajack Build | -11 -10 -10 -10 -9 -8 -7 -7 -7 -7 -6 -6 -6 -6 -6 -6 -5 -5 -5 -5 -5 -5 -4 -4 -4 -4 -3 -3 -2 ------- Run | Jun Mat Min Exi Min Mat Fac Low Low Dat Pro Fac Low Low Zio Dee Pro Fac Ext Cet Arc Hub Fac Gar Fac DSF Res Tes Res Slots Evolved 16 | . . . . . 4 2 . . . . 2 . . . . . 2 . . . . 2 . . . 2 . 2 Power 2 | . . . . . . . . . . . 1 . . . . . . . . . . . . . . . . 1 Propulsion 4 | . . . . . . . . . . . . . . . . . 2 . . . . 1 . . . 1 . . Utility 10 | . . . . . 4 2 . . . . 1 . . . . . . . . . . 1 . . . 1 . 1 Weapon . | . . . . . . . . . . . . . . . . . . . . . . . . . . . . . Parts Attached 390 | . 9 2 20 . 35 15 11 18 . 12 22 7 4 9 45 11 2 8 1 2 19 32 26 . 4 15 19 42 Power 27 | . . . 2 . . . . 1 . 3 2 . 1 . 1 . . . . . . 4 2 . . 1 1 9 Engine 8 | . . . 1 . . . . 1 . 1 2 . . . 1 . . . . . . 2 . . . . . . Core 4 | . . . 1 . . . . . . 1 . . 1 . . . . . . . . . . . . 1 . . Reactor 15 | . . . . . . . . . . 1 . . . . . . . . . . . 2 2 . . . 1 9 Propulsion 48 | . 2 . 6 . 7 1 . 1 . 1 1 1 1 2 2 . 2 . . . . 4 5 . . 3 2 7 Treads 18 | . 2 . 2 . . . . . . . . . . . . . . . . . . . 2 . . 3 2 7 Leg 14 | . . . 2 . . . . . . 1 . . . 1 1 . 2 . . . . 4 3 . . . . . Wheel 16 | . . . 2 . 7 1 . 1 . . 1 1 1 1 1 . . . . . . . . . . . . . Hover . | . . . . . . . . . . . . . . . . . . . . . . . . . . . . . Flight . | . . . . . . . . . . . . . . . . . . . . . . . . . . . . . Utility 204 | . 2 . 6 . 13 9 9 9 . 5 10 3 1 2 32 9 . 6 . 2 18 16 14 . 3 10 9 16 Device 109 | . . . 3 . 1 3 6 4 . 3 4 2 . 1 10 7 . 6 . 2 14 9 10 . . 9 3 12 Storage 13 | . 1 . 1 . . 1 . . . . 1 . . . 1 2 . . . . . 1 1 . 1 . 1 2 Processor 7 | . . . . . 2 1 . . . . 1 . . . 1 . . . . . 1 . . . . . 1 . Hackware 13 | . . . . . 3 1 . . . . 1 . . . . . . . . . . . 2 . 2 . 4 . Protection 62 | . 1 . 2 . 7 3 3 5 . 2 3 1 1 1 20 . . . . . 3 6 1 . . 1 . 2 Artifact . | . . . . . . . . . . . . . . . . . . . . . . . . . . . . . Weapon 111 | . 5 2 6 . 15 5 2 7 . 3 9 3 1 5 10 2 . 2 1 . 1 8 5 . 1 1 7 10 Energy Gun 28 | . . . . . 9 3 . 2 . . 3 1 . 1 3 . . . . . . 1 3 . 1 . . 1 Energy Cannon 35 | . . . 1 . 4 1 1 1 . 2 3 1 1 . 5 1 . 1 1 . 1 2 2 . . 1 1 5 Ballistic Gun 10 | . 3 1 4 . 1 1 . . . . . . . . . . . . . . . . . . . . . . Ballistic Cannon . | . . . . . . . . . . . . . . . . . . . . . . . . . . . . . Launcher 24 | . 2 1 1 . 1 . . 3 . 1 1 1 . 3 2 1 . 1 . . . 5 . . . . 1 . Special Weapon 5 | . . . . . . . . . . . . . . . . . . . . . . . . . . . 3 2 Impact Weapon 5 | . . . . . . . 1 1 . . 2 . . 1 . . . . . . . . . . . . . . Slashing Weapon . | . . . . . . . . . . . . . . . . . . . . . . . . . . . . . Piercing Weapon . | . . . . . . . . . . . . . . . . . . . . . . . . . . . . . Special Melee Weapon 4 | . . . . . . . . . . . . . . . . . . . . . . . . . . . 2 2 Unidentified Prototypes 23 | . . . 4 . 3 1 . 1 . . . . . 2 6 . . . . . 1 1 . . . . 1 3 Corrupted Parts 11 | . . . . . 1 . . . . 4 . . . 1 . . . . . . . 4 . . . . 1 . System Corruption 55 | . . . . . 4 . . . . 24 . . . 6 . . . . . . . 16 . . . . 5 . Parts Lost 100 | . . 1 11 . 6 . . 3 . 2 4 1 2 . 6 5 . 3 1 . . 25 8 . . 4 . 18 Power 15 | . . . 2 . . . . . . . 1 . 1 . . . . . . . . 5 . . . . . 6 Propulsion 24 | . . . 4 . 3 . . 2 . . 1 1 . . 2 . . . . . . 7 1 . . . . 3 Utility 38 | . . . 1 . 3 . . 1 . 1 . . . . 4 3 . 3 1 . . 7 7 . . 3 . 4 Weapon 23 | . . 1 4 . . . . . . 1 2 . 1 . . 2 . . . . . 6 . . . 1 . 5 Highest Loss Streak 9 | . . 1 8 . 2 . . 1 . 1 3 1 2 . 2 3 . 3 1 . . 9 3 . . 2 . 5 To Critical Strikes 5 | . . . 5 . . . . . . . . . . . . . . . . . . . . . . . . . Average Slot Usage (%) 91 | . 96 100 95 100 91 95 100 97 92 98 95 97 97 99 91 84 88 88 88 84 88 82 78 85 88 79 80 75 Engine 3 | . 14 14 7 . . . . 3 7 2 5 6 6 6 5 . . . . . . . . . . . . . Core 3 | . . . 6 14 9 7 7 3 . 4 . . 1 6 5 . . . . . . . . . . . 4 1 Reactor 2 | . . . . . . . . . . . 6 6 2 . . 6 5 5 5 4 5 4 6 10 10 8 4 9 Treads 4 | . 10 28 14 28 . . . . . . . . . . . . . . . . . . 2 10 10 13 13 15 Leg 6 | . 17 . 10 . . . . . . 5 6 6 4 . 6 11 22 22 22 21 22 19 11 5 5 . . . Wheel 4 | . . . . . 11 12 15 12 7 7 5 4 7 11 4 . . . . . . . . . . . . . Device 18 | . . . 6 14 8 16 25 23 21 15 22 23 25 25 11 22 16 18 24 23 17 21 22 20 20 24 21 19 Storage 8 | . 15 14 14 14 9 7 7 7 7 7 6 6 6 6 7 11 16 14 11 11 11 10 9 5 8 6 4 4 Processor 8 | . . . . . 6 9 15 14 14 14 12 12 12 12 13 6 5 5 5 5 5 5 5 5 5 4 4 4 Hackware 2 | . . . . . 16 12 . . . . 4 6 2 . . . . . . . . . 1 10 10 6 8 8 Protection 9 | . 11 14 7 . 11 11 11 13 14 19 10 7 9 12 15 6 5 5 2 3 9 6 5 5 5 2 4 1 Energy Gun 3 | . 1 . . . 13 11 7 4 7 7 4 6 6 4 2 . . . . . . . 1 5 5 . . 1 Energy Cannon 9 | . . . 6 14 1 2 7 6 7 7 7 9 9 11 11 17 16 14 16 13 16 12 12 10 10 10 9 5 Ballistic Gun 2 | . 16 23 18 14 2 . . . . . . . . . . . . . . . . . . . . . . . Launcher 1 | . 7 4 . . . . . 3 7 6 3 1 2 1 4 . . 1 . . . 1 . . . . . . Naked Turns . | . . . . . . . . . . . . . . . . . . . . . . . . . . . . . Heaviest Build 217 | 12 34 32 77 77 87 122 129 134 124 135 144 140 143 144 181 181 174 179 171 178 179 184 191 159 164 178 177 217 Greatest Support 235 | 20 40 40 50 40 40 20 20 26 16 16 20 20 28 32 60 80 108 108 108 108 108 135 160 160 160 235 215 220 Greatest Overweight (x) 25 | . 1 . 11 1 25 8 6 12 7 8 12 13 11 8 12 3 1 1 1 1 1 4 3 . 1 . . 1 Average Overweight (x) 3 | . . . . 1 5 4 5 5 7 7 7 11 8 4 7 2 1 1 1 1 1 1 1 . . . . . Largest Inventory Capacity 25 | . 15 15 20 20 20 25 25 25 25 25 25 25 25 25 25 25 25 25 25 25 25 25 25 25 25 25 25 25 Average Capacity 23 | . 14 15 15 20 20 20 25 25 25 25 25 25 25 25 25 23 25 25 25 25 25 25 25 25 25 25 25 25 Most Carried 25 | . 15 14 20 20 20 24 25 25 25 25 25 25 25 25 25 25 23 23 25 25 25 25 25 25 25 25 25 25 Average Carried 22 | . 9 13 13 20 19 20 24 24 25 24 24 25 24 24 23 15 21 20 24 25 24 23 22 25 24 23 24 21 Final Capacity 25 | 8 15 15 20 20 20 25 25 25 25 25 25 25 25 25 25 25 25 25 25 25 25 25 25 25 25 25 25 25 Final Carried 25 | 6 14 13 20 20 20 24 25 25 25 25 25 25 25 25 25 21 23 23 25 25 25 19 25 25 25 25 25 18 Class Distribution -------------------- 35% | Scavenger-Mutant 20% | Trapper-Mutant 18% | Golem 10% | Mutant 9% | Bothacker-Mutant Dominant Class ---------------- Mutant | -10/Materials Mutant | -10/Mines Mutant | -10/Exiles Scavenger-Mutant | -9/Mines Scavenger-Mutant | -8/Materials Scavenger-Mutant | -7/Factory Scavenger-Mutant | -7/Lower Caves Scavenger-Mutant | -7/Lower Caves Trapper-Mutant | -7/Data Miner Trapper-Mutant | -6/Proximity Caves Trapper-Mutant | -6/Factory Trapper-Mutant | -6/Lower Caves Trapper-Mutant | -6/Lower Caves Trapper-Mutant | -6/Zion Scavenger-Mutant | -6/Deep Caves Golem | -5/Proximity Caves Golem | -5/Factory Golem | -5/Extension Golem | -5/Cetus Golem | -5/Archives Golem | -5/Hub_04(d) Golem | -4/Factory Golem | -4/Garrison Golem | -4/Factory Scavenger-Mutant | -4/DSF Bothacker-Mutant | -3/Research Bothacker-Mutant | -3/Testing Bothacker-Mutant | -2/Research Resources | -11 -10 -10 -10 -9 -8 -7 -7 -7 -7 -6 -6 -6 -6 -6 -6 -5 -5 -5 -5 -5 -5 -4 -4 -4 -4 -3 -3 -2 ----------- Run | Jun Mat Min Exi Min Mat Fac Low Low Dat Pro Fac Low Low Zio Dee Pro Fac Ext Cet Arc Hub Fac Gar Fac DSF Res Tes Res Matter Collected 7384 | 170 109 184 883 20 498 252 113 270 . 264 222 182 232 38 1150 239 . 215 10 20 208 304 613 . 15 191 380 602 Remotely 20 | . . . . . . . . . . . . . . . . . . . . . . . . . . . . 20 Salvage Created 19285 | . 234 167 563 65 1677 276 66 1054 . 843 491 192 366 . 1970 236 134 721 132 275 1307 1596 990 . 289 1640 230 3771 Parts 772 | . 17 22 47 6 74 20 6 24 . 36 19 15 12 . 44 6 9 25 6 5 60 81 46 . 12 52 9 119 Haulers Intercepted 5 | . . . . . 3 1 . . . . . . . . . . . . . . 1 . . . . . . . Recyclers Shooed 6 | . . . . . 2 1 . . . . 3 . . . . . . . . . . . . . . . . . Parts Field Recycled . | . . . . . . . . . . . . . . . . . . . . . . . . . . . . . Retrieved Matter . | . . . . . . . . . . . . . . . . . . . . . . . . . . . . . Parts Self-Destructed 72 | . . . . . . . 6 22 . 25 . 11 1 . . 7 . . . . . . . . . . . . Prevented 51 | . . . . . . . . 11 . 30 . 4 5 . . 1 . . . . . . . . . . . . Kills | -11 -10 -10 -10 -9 -8 -7 -7 -7 -7 -6 -6 -6 -6 -6 -6 -5 -5 -5 -5 -5 -5 -4 -4 -4 -4 -3 -3 -2 ------- Run | Jun Mat Min Exi Min Mat Fac Low Low Dat Pro Fac Low Low Zio Dee Pro Fac Ext Cet Arc Hub Fac Gar Fac DSF Res Tes Res Combat Hostiles Destroyed 325 | . 8 10 1 4 28 3 1 19 . 13 7 7 2 . 58 8 2 13 2 3 15 23 13 . 3 21 4 57 Guns 34 | . . 4 . . 18 3 . 2 . 1 2 . . . 3 . . . . . . . 1 . . . . . Cannons 109 | . . . 1 4 1 . 1 1 . 1 2 2 1 . 3 6 2 9 1 3 12 8 12 . 3 16 3 17 AOE 147 | . 8 6 . . 6 . . 14 . 9 3 5 . . 45 2 . 4 . . 2 12 . . . . . 31 Classes Destroyed 32 | . 4 1 2 . 6 1 2 2 . . . . 2 . 4 3 . . . . . 1 . . . 2 . 2 Worker 17 | . 2 . . 1 3 . . . . . 1 . . . . . . . . . 3 . . . . . . 7 Builder 17 | . . 1 . . 1 1 . . . . 1 . . . . . . . . . 5 4 . . . . . 4 Tunneler 1 | . . . . . 1 . . . . . . . . . . . . . . . . . . . . . . . Hauler 5 | . . . . . 3 1 . . . . . . . . . . . . . . 1 . . . . . . . Recycler 7 | . 1 . . . . . . . . . 1 . . . . . . . . . . 2 . . . . . 3 Minesweeper 3 | . . . . . . . 1 2 . . . . . . . . . . . . . . . . . . . . Mechanic 1 | . . . . . . . . . . . . . . . . . . . . . . . . . . . . 1 Operator 6 | . . . . . 1 . . . . . . . . . . . . 1 . . 1 2 . . . 1 . . Drone 2 | . . . . . . . . . . . . . . . . 2 . . . . . . . . . . . . Turret 1 | . . . 1 . . . . . . . . . . . . . . . . . . . . . . . . . Watcher 8 | . . . . . 2 2 . . . . . . . . . . . 1 . . 1 1 . . . . . 1 Swarmer 59 | . 3 8 . 4 3 . . 7 . 1 4 7 . . . . . 5 . . . 7 . . . . 2 8 Saboteur 1 | . . . . . . . . . . . . . . . . . . . . . . . . . . . . 1 Grunt 117 | . 5 2 . . 16 1 . 7 . 9 3 . . . . . . 4 . . 8 6 5 . 1 10 2 38 Brawler 11 | . . . . . 3 . . 2 . 2 . . . . . . . . . . . . . . . 2 . 2 Duelist 4 | . . . . . . . . 1 . . . . . . . . . . . . 1 . . . 1 . . 1 Protector 5 | . . . . . . . . 1 . . . . . . . 1 . . . . 1 . . . . . . 2 Sentry 21 | . . . . . 6 . . 1 . . . . . . . . . 3 . 3 2 . . . . 2 . 4 Demolisher 2 | . . . . . . . . . . . . . . . . . . . . . . . . . . 2 . . Specialist 5 | . . . . . . . . . . . . . . . . 1 2 . . . . . 2 . . . . . Hunter 14 | . . . . . . . 1 . . 1 . . 1 . . 2 . . 1 . . 4 1 . 1 1 . 1 Programmer 15 | . . . . . . 2 . . . . 1 . . . . 1 . . . . 3 3 3 . . 2 . . Heavy 3 | . . . . . . . . . . . . . . . . . . . . . . 3 . . . . . . Behemoth 6 | . . . . . . . . . . . . . . . . 1 . 1 . . . . 2 . . 1 . 1 Cetus Guard 1 | . . . . . . . . . . . . . . . . . . . 1 . . . . . . . . . Striker 1 | . . . . . . . . . . . . . . . . . . . . . . . . . . 1 . . Zionite 7 | . . . 7 . . . . . . . . . . . . . . . . . . . . . . . . . Z-Technician 5 | . . . . . . . . . . . . . . . 5 . . . . . . . . . . . . . Z-Light 6 | . . . . . . . . . . . . . . . 6 . . . . . . . . . . . . . Decomposer 3 | . . . . . . . . 3 . . . . . . . . . . . . . . . . . . . . Packrat 1 | . . . . . . . . . . . . . 1 . . . . . . . . . . . . . . . Master Thief 1 | . . . . . . . . . . . . . 1 . . . . . . . . . . . . . . . Assembler 2 | . . . . . . . . . . . . . . . 2 . . . . . . . . . . . . . Assembled 45 | . . . . . . . . . . . . . . . 45 . . . . . . . . . . . . . Golem 7 | . . . . . . . . . . . . . . . 7 . . . . . . . . . . . . . Thug 1 | . . . . . . . . . . . . . 1 . . . . . . . . . . . . . . . Butcher 1 | . . . . . . . . . . . . . 1 . . . . . . . . . . . . . . . Guerrilla 1 | . . . . . . . . . . . . . . . . . . 1 . . . . . . . . . . Mutant 1 | . . . . . . . . . . . . . 1 . . . . . . . . . . . . . . . Best Kill Streak 41 | . 5 4 2 4 5 1 1 8 . 5 7 3 1 . 41 5 2 6 1 1 10 11 2 . 2 6 2 23 Combat Bots Only 38 | . 3 3 1 4 5 1 1 8 . 5 4 3 1 . 38 5 2 6 1 1 5 5 2 . 2 6 2 14 Max Kills in Single Turn 21 | . 3 3 1 1 3 1 1 3 . 1 3 1 1 . 21 1 1 4 1 1 7 3 1 . 1 1 1 6 Gunslinging . | . . . . . . . . . . . . . . . . . . . . . . . . . . . . . Exploded 21 | . 3 3 . . 3 . . 3 . 1 2 1 . . 21 1 . 4 . . 2 3 . . . . . 3 Melee . | . . . . . . . . . . . . . . . . . . . . . . . . . . . . . Uniques/NPCs Destroyed 5 | . . . 4 . . . . . . . . . . . . . . . . . . . . . . 1 . . 8R-AWN (-10/Exiles) EX-BIN (-10/Exiles) EX-DEC (-10/Exiles) EX-HEX (-10/Exiles) Revision 17++ (-3/Research) Combat | -11 -10 -10 -10 -9 -8 -7 -7 -7 -7 -6 -6 -6 -6 -6 -6 -5 -5 -5 -5 -5 -5 -4 -4 -4 -4 -3 -3 -2 -------- Run | Jun Mat Min Exi Min Mat Fac Low Low Dat Pro Fac Low Low Zio Dee Pro Fac Ext Cet Arc Hub Fac Gar Fac DSF Res Tes Res Damage Taken 30370 | . 314 129 1295 26 1252 116 42 552 . 561 670 223 153 . 1419 1466 16 1115 164 220 1385 5662 3134 . 273 1834 1146 7203 Core 2723 | . 36 9 170 . 156 . 19 26 . 36 35 10 23 . 253 239 . 44 . 65 68 597 396 . 11 139 112 279 Absorbed by Shields 459 | . . . . . . . . . . . 68 85 60 . 7 . . 7 77 . . . 67 . . 88 . . Reduced by Siege Mode 428 | . . . . . . . . . . . . . . . . . . . . . . . 24 . . 112 . 292 Redirected to Shielding 183 | . 16 22 . . . . . . . . . . . . 145 . . . . . . . . . . . . . Regen/Repaired (Parts) 1006 | . . . . . . . . . . . . . . 10 . . . . . . . . . . . . . 996 Core Remaining (%) 60 | 100 . . . 14 71 . . . . 88 . . . . . 34 . . . . 82 . . . 12 . 80 . Volleys Fired 1233 | . 15 16 110 6 91 24 7 42 . 30 30 13 21 1 185 34 7 35 16 10 71 72 75 . 8 80 47 187 Largest 3 | . 2 2 2 1 2 2 2 2 . 2 3 2 2 1 2 2 2 3 2 3 3 3 3 . 3 2 1 1 Hottest 305 | . 46 46 120 120 122 126 126 126 . 136 201 155 155 65 155 150 50 140 75 125 140 240 240 . 305 240 120 200 Shots Fired 1833 | . 22 29 147 6 165 45 14 63 . 40 61 15 40 1 230 62 9 76 19 30 133 122 137 . 20 114 47 186 Gun 501 | . 14 26 99 . 154 37 7 21 . 11 24 . 19 1 5 . . . . . . 9 14 . 2 . . 58 Cannon 1161 | . . . 48 6 7 8 7 21 . 8 35 7 19 . 193 56 9 75 19 30 133 89 123 . 18 114 32 104 Launcher 132 | . 8 3 . . 4 . . 21 . 21 2 8 2 . 32 6 . 1 . . . 24 . . . . . . Special 39 | . . . . . . . . . . . . . . . . . . . . . . . . . . . 15 24 Kinetic 163 | . 14 26 99 . 22 2 . . . . . . . . . . . . . . . . . . . . . . Thermal 1336 | . . . 48 6 137 43 14 42 . 19 59 7 19 . 136 48 9 75 7 29 133 98 137 . 20 114 32 104 Explosive 55 | . 8 3 . . . . . . . . . . . . 32 6 . 1 . . . 5 . . . . . . Electromagnetic 240 | . . . . . 6 . . 21 . 21 2 8 21 1 62 8 . . 12 1 . 19 . . . . . 58 Robot Hit Streak 49 | . 2 4 24 7 49 13 6 32 . 38 15 12 11 . 21 7 8 12 6 10 19 13 22 . 5 12 12 17 Robot Miss Streak 6 | . 3 2 4 . 3 2 1 1 . 1 2 1 2 . 2 5 . 3 2 1 3 4 3 . 3 3 6 3 Penetration Max 1 | . . . . . 1 . . . . . . . . . . . . . . . . . . . . . . 1 Secondary Targets 4 | . . 2 . . 2 . . . . . . . . . . . . . . . . . . . . . . . Max Gunslinging Chain 1 | . . 1 . . 1 . . . . . . . . . . . . . . . . . . . . . . . Capacitor 207 | . . . . . . . . . . . . . . . . . . . . . . . . . . 42 32 133 Shots Hit Robots 1207 | . 7 18 98 1 128 34 11 44 . 31 44 7 30 . 102 35 4 53 13 22 82 73 93 . 11 84 37 145 Core Hits 700 | . 17 14 27 5 53 12 3 44 . 35 22 10 9 . 119 18 3 22 6 7 38 59 25 . 7 35 5 105 Critical Kills 18 | . . . . . 4 . . . . . . . . . . . . . . . . . . . . 5 1 8 Critical Parts Destroyed 9 | . . . 5 . 4 . . . . . . . . . . . . . . . . . . . . . . . Critical Strikes 43 | . . . 5 . 18 5 . . . . 1 . . . . . . . . . . . . . . 5 1 8 Burn 16 | . . . . . 10 5 . . . . 1 . . . . . . . . . . . . . . . . . Meltdown 14 | . . . . . . . . . . . . . . . . . . . . . . . . . . 5 1 8 Destroy 13 | . . . 5 . 8 . . . . . . . . . . . . . . . . . . . . . . . Melee Attacks 35 | . . . . . . . . 1 . . 5 . . 8 . . . . . . . . . . . . 14 7 Impact 14 | . . . . . . . . 1 . . 5 . . 8 . . . . . . . . . . . . . . Slashing . | . . . . . . . . . . . . . . . . . . . . . . . . . . . . . Piercing . | . . . . . . . . . . . . . . . . . . . . . . . . . . . . . Sneak Attacks 7 | . . . . . . . . . . . . . . . . . . . . . . . . . . . 4 3 Combat Hostiles 2 | . . . . . . . . . . . . . . . . . . . . . . . . . . . 2 . Follow-up Attacks . | . . . . . . . . . . . . . . . . . . . . . . . . . . . . . Damage Inflicted 61857 | . 618 520 2689 219 3194 661 227 2157 . 2026 1297 377 1009 . 7312 2345 155 2869 555 1200 4627 4795 4153 . 574 3942 729 13607 Guns 5937 | . 94 259 1108 . 2067 553 120 325 . 177 311 . 374 . 144 . . . . . . 55 205 . 30 . . 115 Cannons 34564 | . . . 1567 215 174 108 107 438 . 197 736 168 505 . 2588 1560 155 2672 555 1200 3543 2849 3948 . 544 3872 714 6149 Explosions 21167 | . 519 259 . . 953 . . 1394 . 1652 250 209 130 . 4580 785 . 197 . . 1040 1883 . . . . . 7316 Melee . | . . . . . . . . . . . . . . . . . . . . . . . . . . . . . Ramming 189 | . 5 2 14 4 . . . . . . . . . . . . . . . . 44 8 . . . 70 15 27 Kinetic 1725 | . 94 259 1108 . 264 . . . . . . . . . . . . . . . . . . . . . . . Thermal 44375 | . . . 1567 215 2179 661 227 895 . 536 1063 168 505 . 1355 1452 155 2672 204 1169 3543 3031 4153 . 574 3872 714 13465 Explosive 7143 | . 519 259 . . . . . . . . . . . . 4526 785 . 197 . . . 857 . . . . . . Electromagnetic 8425 | . . . . . 751 . . 1262 . 1490 234 209 504 . 1431 108 . . 351 31 1040 899 . . . . . 115 Impact . | . . . . . . . . . . . . . . . . . . . . . . . . . . . . . Slashing . | . . . . . . . . . . . . . . . . . . . . . . . . . . . . . Piercing . | . . . . . . . . . . . . . . . . . . . . . . . . . . . . . Highest Corruption 28 | . . . . . 10 2 2 . . 24 . . . 6 2 3 . . . . 3 26 28 19 19 1 8 10 Average Corruption 8 | . . . . . 3 2 1 . . 14 . . . 6 1 2 . . . . 2 9 22 19 19 1 4 4 Corruption Purged 18 | . . . . . . . 2 . . . . . . . 2 3 . . . . . 2 9 . . . . . Corruption Blocked 60 | . . . . . . . . . . . . . . . . . . . . . . . . . . . 60 . Effects 361 | . . . . . 23 11 . . . 36 . . . . 50 2 . . . . 11 14 130 . 16 . 40 28 Message Errors 79 | . . . . . 5 3 . . . 10 . . . . 12 . . . . . 2 4 27 . 3 . 7 6 Matter Fused 81 | . . . . . 7 5 . . . 3 . . . . 11 . . . . . 2 5 32 . 5 . 7 4 Heat Flow Errors 52 | . . . . . 1 . . . . 10 . . . . 10 . . . . . . 1 15 . 3 . 9 3 Energy Discharges 38 | . . . . . 2 1 . . . 5 . . . . 7 1 . . . . 2 . 8 . 1 . 5 6 Parts Rejected 8 | . . . . . 1 . . . . . . . . . 1 . . . . . . 1 . . . . 1 4 Parts Fused 4 | . . . . . . . . . . . . . . . . . . . . . 1 . 1 . 1 . 1 . Data Loss (minor) 49 | . . . . . 3 1 . . . 4 . . . . 5 1 . . . . 2 2 22 . 1 . 6 2 Data Loss (major) 17 | . . . . . 2 . . . . 1 . . . . . . . . . . . . 10 . . . 2 2 Misfires 13 | . . . . . . . . . . 2 . . . . 2 . . . . . . . 6 . 2 . 1 . Alerts 6 | . . . . . . . . . . 1 . . . . 2 . . . . . 2 . 1 . . . . . Misdirections 3 | . . . . . . . . . . . . . . . . . . . . . . 1 2 . . . . . Weapon Failures 11 | . . . . . 2 1 . . . . . . . . . . . . . . . . 6 . . . 1 1 Overload Shots 4 | . . . . . . . . . . . . . . . . . . . . . . 4 . . . . . . Overflow Damage 3206 | . . 28 107 . 110 . 4 84 . 31 37 10 64 . 460 113 . 79 . 10 196 127 62 . . 209 63 1412 Projectiles 1827 | . . . 107 . 41 . 4 44 . 11 . . 64 . 202 98 . 79 . 10 185 94 62 . . 198 63 565 Explosions 1368 | . . 28 . . 69 . . 40 . 20 37 10 . . 258 15 . . . . 11 33 . . . . . 847 Melee 11 | . . . . . . . . . . . . . . . . . . . . . . . . . . 11 . . Knockbacks 2 | . . . 1 . . . . . . . . . . . . . . . . . . . . . . 1 . . Impact 2 | . . . 1 . . . . . . . . . . . . . . . . . . . . . . 1 . . Kinetic . | . . . . . . . . . . . . . . . . . . . . . . . . . . . . . Secondary . | . . . . . . . . . . . . . . . . . . . . . . . . . . . . . Self-Inflicted Damage 795 | . 26 29 . . 71 . . 6 . 21 53 . . . 113 34 . . . . 76 89 . . . . . 277 Shots 24 | . 2 1 . . 4 . . 1 . 1 3 . . . 3 1 . . . . 1 2 . . . . . 5 Rammed 16 | . . 1 8 1 . . . . . . . . . . . . . . . . . . . . . 2 1 3 Targets Rammed 21 | . 1 1 8 2 . . . . . . . . . . . . . . . . 1 2 . . . 2 1 3 Kicked 4 | . 1 . . . . . . . . . . . . . . . . . . . 1 2 . . . . . . Crushed 1 | . . . . 1 . . . . . . . . . . . . . . . . . . . . . . . . Highest Temperature 498 | . 12 22 344 210 368 228 96 335 . 238 117 . . . 333 324 . 5 . . 186 413 370 . 182 339 256 498 Average Temperature 104 | . 6 7 83 110 94 83 40 71 . 88 57 . . . 90 102 . 5 . . 58 149 115 . 48 140 89 166 Received Heat Transfer 4675 | . 36 36 . . 576 18 . 135 . 183 133 . . . 201 234 . 213 4 36 343 316 407 . . 361 183 1260 Effects 22 | . . . 1 . 3 . . . . . . . . . 1 . . . . . . . . . . 5 . 12 Shutdowns 7 | . . . . . . . . . . . . . . . . . . . . . . . . . . . . 7 Energy Bleed 5 | . . . . . 1 . . . . . . . . . 1 . . . . . . . . . . 1 . 2 Interference 6 | . . . 1 . . . . . . . . . . . . . . . . . . . . . . 4 . 1 Matter Decay 2 | . . . . . 1 . . . . . . . . . . . . . . . . . . . . . . 1 Short Circuit 2 | . . . . . 1 . . . . . . . . . . . . . . . . . . . . . . 1 Siege Activations 16 | . . . . . . . . . . . . . . . . . . . . . . . 3 . 2 2 . 9 Total Turns 213 | . . . . . . . . . . . . . . . . . . . . . . . 27 . 8 36 . 142 Longest Duration 49 | . . . . . . . . . . . . . . . . . . . . . . . 15 . 5 24 . 49 Robots Corrupted 18 | . . . . . 1 . . 2 . 2 . . 1 . 7 . . . 1 . 1 3 . . . . . . Combat Hostiles 17 | . . . . . 1 . . 2 . 2 . . 1 . 7 . . . 1 . . 3 . . . . . . Parts Fried 30 | . . . . . 1 . . 4 . 5 . 1 6 . . 2 . 2 . . 4 5 . . . . . . Impact Corruptions 1 | . . . . . . . . . . . . . . . . . . . . . . . . . . 1 . . Robots Melted 19 | . . . . . 2 . . . . . . . . . . . . . . . 1 . . . 1 5 1 9 Combat Hostiles 18 | . . . . . 2 . . . . . . . . . . . . . . . 1 . . . . 5 1 9 Parts Melted 88 | . . . 16 . 9 5 . 7 . . 1 . . . 2 1 . 1 . 1 3 5 3 . 1 10 2 21 Heat Transferred 42740 | . . . 3220 480 5262 1628 407 1445 . 679 1752 222 555 . 1177 870 100 1448 100 525 2371 2296 2574 . 518 3246 629 11236 Parts Sabotaged . | . . . . . . . . . . . . . . . . . . . . . . . . . . . . . Parts Stolen 4 | . . . . . . . . 1 . . . . 3 . . . . . . . . . . . . . . . Parts Stripped . | . . . . . . . . . . . . . . . . . . . . . . . . . . . . . Power Chain Reactions 16 | . . . . . 1 . . 3 . 1 1 . . . 1 . . . . . . 1 . . . . . 8 Missiles Intercepted 3 | . . . . . . . . . . . . . . . . . . . . . . . . . . 3 . . Latent Energy Used 400 | . . . . . 400 . . . . . . . . . . . . . . . . . . . . . . . LE Corruption 6 | . . . . . 6 . . . . . . . . . . . . . . . . . . . . . . . Alert | -11 -10 -10 -10 -9 -8 -7 -7 -7 -7 -6 -6 -6 -6 -6 -6 -5 -5 -5 -5 -5 -5 -4 -4 -4 -4 -3 -3 -2 ------- Run | Jun Mat Min Exi Min Mat Fac Low Low Dat Pro Fac Low Low Zio Dee Pro Fac Ext Cet Arc Hub Fac Gar Fac DSF Res Tes Res Peak Influence 2646 | . 181 206 . 95 812 533 . . . . 362 . . . . . 459 548 690 301 1453 890 1544 810 866 765 908 2646 Initial 810 | . . 40 . . 37 333 . . . . 156 . . . . . 450 177 306 276 25 711 538 810 567 486 290 459 Average 488 | . 85 74 . 50 384 393 . . . . 164 . . . . . 428 230 547 187 337 738 822 810 742 462 366 1509 Maximum Alert Level 5 | . . 1 . . 3 2 . . . . 1 . . . . . 2 2 2 1 4 3 4 3 3 3 3 5 Low Security (%) 25 | . 100 97 . 100 18 2 . . . . 69 . . . . . . 40 . 55 12 . . . . . 11 . Level 1 28 | . . 2 . . 45 59 . . . . 30 . . . . . 19 44 11 44 74 . . . . 32 61 . Level 2 25 | . . . . . 21 38 . . . . . . . . . . 80 14 88 . 12 22 46 . 35 63 23 7 Level 3 14 | . . . . . 13 . . . . . . . . . . . . . . . . 77 37 100 64 4 4 32 Level 4 3 | . . . . . . . . . . . . . . . . . . . . . 1 . 15 . . . . 19 Level 5 3 | . . . . . . . . . . . . . . . . . . . . . . . . . . . . 40 High Security . | . . . . . . . . . . . . . . . . . . . . . . . . . . . . . Max Security . | . . . . . . . . . . . . . . . . . . . . . . . . . . . . . Sterilizations 1 | . . . . . . . . . . . . . . . . . . . . . . . . . 1 . . . Squads Dispatched 67 | . 1 . . . 4 5 . 1 . 1 3 . . . . . 2 2 . . 5 7 . . 1 8 9 18 Investigation 10 | . 1 . . . 2 2 . . . . 1 . . . . . 1 . . . . . . . . 3 . . Extermination 12 | . . . . . . 2 . . . . 2 . . . . . . . . . 1 2 . . . . 3 2 Reinforcement 29 | . . . . . 1 1 . . . . . . . . . . 1 2 . . 2 3 . . 1 5 6 7 Assault 14 | . . . . . 1 . . 1 . 1 . . . . . . . . . . 2 . . . . . . 9 Garrison 2 | . . . . . . . . . . . . . . . . . . . . . . 2 . . . . . . Intercept . | . . . . . . . . . . . . . . . . . . . . . . . . . . . . . Searches Triggered 1 | . . . . . . . . . . . . . . . . . 1 . . . . . . . . . . . Data Miner Redirects 6 | . . . . . . . . . . . 1 . . . . . 1 . . . 1 . . . . . . 3 Construction Impeded 4 | . . . . . . . . . . . . . . . . . . 1 . . 1 1 . . . . . 1 Haulers Reinforced 8 | . . . . . . 1 . . . . . . . . . . . . . . . . . . . 3 . 4 Active Scanning Responses . | . . . . . . . . . . . . . . . . . . . . . . . . . . . . . Cargo Convoy Interrupts . | . . . . . . . . . . . . . . . . . . . . . . . . . . . . . Stealth | -11 -10 -10 -10 -9 -8 -7 -7 -7 -7 -6 -6 -6 -6 -6 -6 -5 -5 -5 -5 -5 -5 -4 -4 -4 -4 -3 -3 -2 --------- Run | Jun Mat Min Exi Min Mat Fac Low Low Dat Pro Fac Low Low Zio Dee Pro Fac Ext Cet Arc Hub Fac Gar Fac DSF Res Tes Res Distress Signals 14 | . . . . . 2 . . . . . . . . . . 1 . . 3 . 2 . . . . 2 2 2 Communications Jammed 242 | . . . . . . . . . . . . . . . . . . . . . 73 18 . . 5 48 24 74 Distress Signals 218 | . . . . . . . . . . . . . . . . . . . . . 72 2 . . . 48 24 72 Times Spotted 556 | . 14 13 28 4 42 5 1 28 . 27 17 7 5 . 53 9 2 20 11 3 33 28 12 . 7 32 52 103 Peak Tracking Total 37 | . 5 3 9 4 6 1 1 9 . 7 5 4 3 . 37 5 1 6 5 1 7 5 4 . 3 5 8 9 Tactical Retreats 25 | . . 1 3 . 4 . . 2 . 1 . 1 1 . 5 . . . . . 1 1 1 . . 1 . 3 Traps | -11 -10 -10 -10 -9 -8 -7 -7 -7 -7 -6 -6 -6 -6 -6 -6 -5 -5 -5 -5 -5 -5 -4 -4 -4 -4 -3 -3 -2 ------- Run | Jun Mat Min Exi Min Mat Fac Low Low Dat Pro Fac Low Low Zio Dee Pro Fac Ext Cet Arc Hub Fac Gar Fac DSF Res Tes Res Traps Triggered 33 | . 2 . . . . 2 . . . . 4 . . . . . 1 3 . . 1 7 5 . 4 3 . 1 Indirectly 5 | . . . . . . . . . . . 4 . . . . . . . . . . 1 . . . . . . Trap Hack Attempts . | . . . . . . . . . . . . . . . . . . . . . . . . . . . . . Triggered . | . . . . . . . . . . . . . . . . . . . . . . . . . . . . . Disarmed . | . . . . . . . . . . . . . . . . . . . . . . . . . . . . . Reprogrammed . | . . . . . . . . . . . . . . . . . . . . . . . . . . . . . Reused 13 | . . . . . . . . 5 . . . . . . 8 . . . . . . . . . . . . . Traps Extracted 3 | . . . . . . . . 3 . . . . . . . . . . . . . . . . . . . . Installed 20 | . . . . . . . . 8 . . . . . . 12 . . . . . . . . . . . . . Triggered 7 | . . . . . . . . 6 . . . . . . . 1 . . . . . . . . . . . . Most Traps Carried 12 | . . . . . . . 7 12 12 12 12 12 12 12 12 . . . . . . . . . . . . . Exploded 3 | . . . 3 . . . . . . . . . . . . . . . . . . . . . . . . . Machines | -11 -10 -10 -10 -9 -8 -7 -7 -7 -7 -6 -6 -6 -6 -6 -6 -5 -5 -5 -5 -5 -5 -4 -4 -4 -4 -3 -3 -2 ---------- Run | Jun Mat Min Exi Min Mat Fac Low Low Dat Pro Fac Low Low Zio Dee Pro Fac Ext Cet Arc Hub Fac Gar Fac DSF Res Tes Res Machines Disabled 80 | . . . 7 . 5 . . . . . . . . 2 2 . . 4 1 2 27 8 3 . . . 11 8 Max in Single Turn 23 | . . . 1 . 2 . . . . . . . . 1 1 . . . 1 1 23 4 1 . . . 1 1 Garrison Access 10 | . . . . . 1 1 . . . . 1 . . . . . . . . . 2 . . . . 3 . 2 Garrison Relay 2 | . . . . . . . . . . . . . . . . . . . . . . . 2 . . . . . Network Hub 2 | . . . . . . . . . . . . . . . . . . . . . 2 . . . . . . . Energy Cycler 1 | . . . . . . . . . . . . . . . . . . 1 . . . . . . . . . . Machines Repaired . | . . . . . . . . . . . . . . . . . . . . . . . . . . . . . Machines Sabotaged . | . . . . . . . . . . . . . . . . . . . . . . . . . . . . . Overloaded Fab Kills . | . . . . . . . . . . . . . . . . . . . . . . . . . . . . . Hacking | -11 -10 -10 -10 -9 -8 -7 -7 -7 -7 -6 -6 -6 -6 -6 -6 -5 -5 -5 -5 -5 -5 -4 -4 -4 -4 -3 -3 -2 --------- Run | Jun Mat Min Exi Min Mat Fac Low Low Dat Pro Fac Low Low Zio Dee Pro Fac Ext Cet Arc Hub Fac Gar Fac DSF Res Tes Res Machines Accessed 31 | . 1 . 2 . 6 4 . . 3 . 5 1 . . . . 1 . . . . 1 . 1 . 3 1 2 Terminals 9 | . 1 . . . 3 1 . . . . 2 . . . . . 1 . . . . . . 1 . . . . Fabricators 5 | . . . . . . 2 . . . . 2 . . . . . . . . . . . . . . . 1 . Repair Stations . | . . . . . . . . . . . . . . . . . . . . . . . . . . . . . Recycling Units 2 | . . . . . 2 . . . . . . . . . . . . . . . . . . . . . . . Scanalyzers . | . . . . . . . . . . . . . . . . . . . . . . . . . . . . . Garrison Access 9 | . . . . . 1 1 . . . . 1 . . . . . . . . . . 1 . . . 3 . 2 Total Hacks 83 | . 2 . 2 . 15 8 . . 26 . 10 1 . . . . 4 . . . . 2 . 2 . 3 6 2 Successful 62 | . 1 . 2 . 8 4 . . 26 . 7 1 . . . . 2 . . . . 1 . 1 . 3 4 2 Failed 21 | . 1 . . . 7 4 . . . . 3 . . . . . 2 . . . . 1 . 1 . . 2 . Catastrophic 2 | . . . . . . . . . . . 2 . . . . . . . . . . . . . . . . . Database Lockouts . | . . . . . . . . . . . . . . . . . . . . . . . . . . . . . Manual 34 | . 2 . 1 . 12 5 . . . . 8 . . . . . 4 . . . . . . . . . 2 . Terminals 27 | . 2 . . . 12 2 . . . . 5 . . . . . 4 . . . . . . 2 . . . . Fabricators 12 | . . . . . . 3 . . . . 3 . . . . . . . . . . . . . . . 6 . Repair Stations . | . . . . . . . . . . . . . . . . . . . . . . . . . . . . . Recycling Units 2 | . . . . . 2 . . . . . . . . . . . . . . . . . . . . . . . Scanalyzers . | . . . . . . . . . . . . . . . . . . . . . . . . . . . . . Garrison Access 13 | . . . . . 1 3 . . . . 2 . . . . . . . . . . 2 . . . 3 . 2 Terminal Hacks 35 | . 1 . 2 . 2 1 . . 26 . . 1 . . . . 1 . . . . . . 1 . . . . Record 7 | . . . 1 . . . . . 6 . . . . . . . . . . . . . . . . . . . Part Schematic 13 | . 1 . . . . . . . 12 . . . . . . . . . . . . . . . . . . . Robot Schematic 5 | . . . . . . . . . 5 . . . . . . . . . . . . . . . . . . . Prototype ID Bank 3 | . . . . . . . . . 3 . . . . . . . . . . . . . . . . . . . Open Door 1 | . . . . . . . . . . . . 1 . . . . . . . . . . . . . . . . Open DSF 1 | . . . . . . . . . . . . . . . . . . . . . . . . 1 . . . . Branch Access Points 1 | . . . . . . 1 . . . . . . . . . . . . . . . . . . . . . . Terminal Index 1 | . . . . . 1 . . . . . . . . . . . . . . . . . . . . . . . Alert Level 1 | . . . . . . . . . . . . . . . . . 1 . . . . . . . . . . . Locate Traps 1 | . . . . . 1 . . . . . . . . . . . . . . . . . . . . . . . EX-Prototype ID Bank 1 | . . . 1 . . . . . . . . . . . . . . . . . . . . . . . . . Fabricator Hacks 5 | . . . . . . 1 . . . . 1 . . . . . . . . . . . . . . . 3 . Network Status 3 | . . . . . . 1 . . . . 1 . . . . . . . . . . . . . . . 1 . Load Schematic 1 | . . . . . . . . . . . . . . . . . . . . . . . . . . . 1 . Build 1 | . . . . . . . . . . . . . . . . . . . . . . . . . . . 1 . Repair Station Hacks . | . . . . . . . . . . . . . . . . . . . . . . . . . . . . . Recycling Unit Hacks . | . . . . . . . . . . . . . . . . . . . . . . . . . . . . . Scanalyzer . | . . . . . . . . . . . . . . . . . . . . . . . . . . . . . Garrison Access Hacks 7 | . . . . . 1 . . . . . . . . . . . . . . . . 1 . . . 3 . 2 Unlock Access 1 | . . . . . . . . . . . . . . . . . . . . . . 1 . . . . . . Seal Access 6 | . . . . . 1 . . . . . . . . . . . . . . . . . . . . 3 . 2 Unauthorized Hacks 15 | . . . . . 5 2 . . . . 6 . . . . . 1 . . . . . . . . . 1 . Terminals 7 | . . . . . 3 . . . . . 3 . . . . . 1 . . . . . . . . . . . Assimilate 1 | . . . . . 1 . . . . . . . . . . . . . . . . . . . . . . . Botnet 4 | . . . . . 1 . . . . . 2 . . . . . 1 . . . . . . . . . . . Operators 2 | . . . . . 1 . . . . . 1 . . . . . . . . . . . . . . . . . Fabricators 4 | . . . . . . 1 . . . . 2 . . . . . . . . . . . . . . . 1 . Liberate 4 | . . . . . . 1 . . . . 2 . . . . . . . . . . . . . . . 1 . Repair Stations . | . . . . . . . . . . . . . . . . . . . . . . . . . . . . . Recycling Units 2 | . . . . . 2 . . . . . . . . . . . . . . . . . . . . . . . Tunnel 2 | . . . . . 2 . . . . . . . . . . . . . . . . . . . . . . . Scanalyzers . | . . . . . . . . . . . . . . . . . . . . . . . . . . . . . Garrison Access 2 | . . . . . . 1 . . . . 1 . . . . . . . . . . . . . . . . . Jam 2 | . . . . . . 1 . . . . 1 . . . . . . . . . . . . . . . . . Data Cores Recovered 3 | . . . . . . . . . . . . . . . . . . 2 . . . 1 . . . . . . Used . | . . . . . . . . . . . . . . . . . . . . . . . . . . . . . Hacking Detections 12 | . 1 . . . 3 3 . . . . 3 . . . . . 1 . . . . . . . . . 1 . Full Trace Events 1 | . . . . . . . . . . . . . . . . . 1 . . . . . . . . . . . Feedback Events . | . . . . . . . . . . . . . . . . . . . . . . . . . . . . . Feedback Blocked . | . . . . . . . . . . . . . . . . . . . . . . . . . . . . . Robot Schematics Acquired 12 | . . . . . . . . . 5 . . . . 3 . . . . . . . . . . . . 4 . Robots Built . | . . . . . . . . . . . . . . . . . . . . . . . . . . . . . Authchips . | . . . . . . . . . . . . . . . . . . . . . . . . . . . . . Time . | . . . . . . . . . . . . . . . . . . . . . . . . . . . . . Total Robot Build Rating . | . . . . . . . . . . . . . . . . . . . . . . . . . . . . . Part Schematics Acquired 34 | . 1 . . . . . . . 12 . . . . 13 . . . . . . . . . . . . 8 . Parts Built 1 | . . . . . . . . . . . . . . . . . . . . . . . . . . . 1 . Authchips 1 | . . . . . . . . . . . . . . . . . . . . . . . . . . . 1 . Time 169 | . . . . . . . . . . . . . . . . . . . . . . . . . . . 169 . Total Part Build Rating 6 | . . . . . . . . . . . . . . . . . . . . . . . . . . . 6 . Parts Repaired . | . . . . . . . . . . . . . . . . . . . . . . . . . . . . . Time . | . . . . . . . . . . . . . . . . . . . . . . . . . . . . . Parts Recycled . | . . . . . . . . . . . . . . . . . . . . . . . . . . . . . Recycled Matter . | . . . . . . . . . . . . . . . . . . . . . . . . . . . . . Retrieved Matter . | . . . . . . . . . . . . . . . . . . . . . . . . . . . . . Retrieved Components . | . . . . . . . . . . . . . . . . . . . . . . . . . . . . . Parts Scanalyzed . | . . . . . . . . . . . . . . . . . . . . . . . . . . . . . Part Schematics Acquired . | . . . . . . . . . . . . . . . . . . . . . . . . . . . . . Parts Damaged . | . . . . . . . . . . . . . . . . . . . . . . . . . . . . . Bothacking | -11 -10 -10 -10 -9 -8 -7 -7 -7 -7 -6 -6 -6 -6 -6 -6 -5 -5 -5 -5 -5 -5 -4 -4 -4 -4 -3 -3 -2 ------------ Run | Jun Mat Min Exi Min Mat Fac Low Low Dat Pro Fac Low Low Zio Dee Pro Fac Ext Cet Arc Hub Fac Gar Fac DSF Res Tes Res Used RIF Installer 1 | . . . . . . . . . . . . . . . . . . . . . . . 1 . . . . . Robots Hacked 25 | . . . . . . . . . . . . . . . . . . . . . . . . . . . 18 7 Non-combat 3 | . . . . . . . . . . . . . . . . . . . . . . . . . . . 1 2 Combat 22 | . . . . . . . . . . . . . . . . . . . . . . . . . . . 17 5 Robot Hacks Applied 30 | . . . . . . . . . . . . . . . . . . . . . . . . . . . 21 9 parse_system 5 | . . . . . . . . . . . . . . . . . . . . . . . . . . . 5 . no_distress 2 | . . . . . . . . . . . . . . . . . . . . . . . . . . . 1 1 find_dsf 1 | . . . . . . . . . . . . . . . . . . . . . . . . . . . . 1 drop_inventory 2 | . . . . . . . . . . . . . . . . . . . . . . . . . . . . 2 disable_scanner 8 | . . . . . . . . . . . . . . . . . . . . . . . . . . . 8 . formatsys_high 12 | . . . . . . . . . . . . . . . . . . . . . . . . . . . 7 5 Relay Couplers Released 10 | . . . . . . . . . . . . . . . . . . . . . 3 . 7 . . . . . Machine Destruction 7 | . . . . . . . . . . . . . . . . . . . . . . . 7 . . . . . Programmers 3 | . . . . . . . . . . . . . . . . . . . . . 3 . . . . . . . Attached 7 | . . . . . . . . . . . . . . . . . . . . . . . 2 . 2 . 3 . Fabnet Peak Effective % . | . . . . . . . . . . . . . . . . . . . . . . . . . . . . . Robots Rewired 16 | . . . . . . . . 2 . . . . . . . . . 3 . . . . 4 . . . 1 6 Allies Hacked 3 | . . . . . . . . . . . . . . . . . . . . . . . . . . . 3 . Hacks Repelled . | . . . . . . . . . . . . . . . . . . . . . . . . . . . . . Allies | -11 -10 -10 -10 -9 -8 -7 -7 -7 -7 -6 -6 -6 -6 -6 -6 -5 -5 -5 -5 -5 -5 -4 -4 -4 -4 -3 -3 -2 -------- Run | Jun Mat Min Exi Min Mat Fac Low Low Dat Pro Fac Low Low Zio Dee Pro Fac Ext Cet Arc Hub Fac Gar Fac DSF Res Tes Res Total Allies 51 | . . 3 . . 1 . . 2 . 1 3 . . . . . . 12 . . . . 4 . . . 11 14 Largest Group 7 | . . 3 2 . 1 . . 2 2 3 3 . . . . . . 7 6 3 2 . 4 4 4 1 5 3 Highest-Rated Group 410 | . . 77 46 . 26 . . 60 60 156 96 . . . . . . 350 319 108 77 . 224 224 224 56 410 246 Highest-Rated Ally 159 | . . 31 28 . 26 . . 30 30 96 96 . . . . . . 159 159 39 39 . 56 56 56 56 125 125 Total Orders 30 | . . . . . 3 . . . . . . . . . . . . 2 . 2 6 2 . . . . 12 3 STAY 6 | . . . . . 2 . . . . . . . . . . . . . . 1 . . . . . . 2 1 FOLLOW 4 | . . . . . 1 . . . . . . . . . . . . . . 1 . . . . . . 2 . RETURN 20 | . . . . . . . . . . . . . . . . . . 2 . . 6 2 . . . . 8 2 Ally Attacks 510 | . . 8 . . . . . 5 . 39 36 . . . . . . 69 75 8 16 . . . 31 3 137 83 Total Damage 21311 | . . 41 . . . . . 121 . 1309 609 . . . . . . 2011 1438 91 345 . . . 1227 190 9469 4460 Kills 138 | . . 1 . . . . . 4 . 13 7 . . . . . . 14 12 1 6 . . . 5 2 50 23 Allies Corrupted 1 | . . . . . 1 . . . . . . . . . . . . . . . . . . . . . . . Allies Melted . | . . . . . . . . . . . . . . . . . . . . . . . . . . . . . Intel | -11 -10 -10 -10 -9 -8 -7 -7 -7 -7 -6 -6 -6 -6 -6 -6 -5 -5 -5 -5 -5 -5 -4 -4 -4 -4 -3 -3 -2 ------- Run | Jun Mat Min Exi Min Mat Fac Low Low Dat Pro Fac Low Low Zio Dee Pro Fac Ext Cet Arc Hub Fac Gar Fac DSF Res Tes Res Robot Analysis Total . | . . . . . . . . . . . . . . . . . . . . . . . . . . . . . Derelict Logs Recovered 8 | . . 1 . . . . . 1 . . . 2 2 1 . 1 . . . . . . . . . . . . Drone Launches 23 | . . . . . . . . . . . . . . . . . . 2 . . 7 2 . . . . 8 4 Drone Recoveries 21 | . . . . . . . . . . . . . . . . . . 2 . . 7 2 . . . . 8 2 Exploration | -11 -10 -10 -10 -9 -8 -7 -7 -7 -7 -6 -6 -6 -6 -6 -6 -5 -5 -5 -5 -5 -5 -4 -4 -4 -4 -3 -3 -2 ------------- Run | Jun Mat Min Exi Min Mat Fac Low Low Dat Pro Fac Low Low Zio Dee Pro Fac Ext Cet Arc Hub Fac Gar Fac DSF Res Tes Res Turns Passed 41423 | . 509 1150 2930 366 1303 1228 2003 2524 152 1204 1824 2162 1603 1787 5854 1672 374 1582 350 908 1114 1003 2594 7 354 1890 1456 1520 Spaces Moved 16805 | 1 249 682 1369 146 517 702 1144 1303 75 511 584 710 645 1056 1918 355 167 703 157 82 419 322 498 5 132 1083 675 595 Core 2 | . . . 1 . 1 . . . . . . . . . . . . . . . . . . . . . . . Treads 4550 | . 92 682 877 146 8 . . . . . . . . . . . . . . . . . 255 5 132 1083 675 595 Legs 3705 | 1 157 . 491 . . . . . . . 116 80 . . 412 355 167 703 157 82 419 322 243 . . . . . Wheels 8548 | . . . . . 508 702 1144 1303 75 511 468 630 645 1056 1506 . . . . . . . . . . . . . Hover . | . . . . . . . . . . . . . . . . . . . . . . . . . . . . . Flight . | . . . . . . . . . . . . . . . . . . . . . . . . . . . . . Fastest Speed 120 | 120 120 160 160 240 125 125 155 150 205 205 220 255 170 160 160 210 195 195 195 195 195 132 160 160 160 155 158 138 Average Speed 192 | 120 175 160 177 240 166 154 169 171 205 216 285 296 220 160 219 210 195 195 195 195 195 206 212 160 227 156 169 172 Slowest Speed 1300 | 120 190 160 600 240 1300 200 170 260 205 220 540 540 255 220 270 240 195 195 195 195 195 325 340 160 250 158 173 218 Overloaded Moves . | . . . . . . . . . . . . . . . . . . . . . . . . . . . . . Propulsion Burnouts . | . . . . . . . . . . . . . . . . . . . . . . . . . . . . . Robots Hopped . | . . . . . . . . . . . . . . . . . . . . . . . . . . . . . Cave-ins Triggered . | . . . . . . . . . . . . . . . . . . . . . . . . . . . . . Exploration Rate (%) 57 | 2 50 98 92 33 53 23 94 93 68 69 17 81 82 79 90 47 6 83 66 73 43 13 46 1 95 45 92 28 Regions Visited 28 Branch Regions 17 Pre-discovered Areas 6 | . . . 1 . 2 . . 1 1 . . . . 1 . . . . . . . . . . . . . . Known Exits Taken 20 | . . . . . . 1 1 1 1 1 1 1 1 1 1 1 1 1 1 1 1 1 . 1 . 1 1 . Unknown Exits Taken 6 | 1 1 1 1 1 1 . . . . . . . . . . . . . . . . . . . . . . . Scrap Searched 15 | . . 1 . 1 . . 4 3 . 1 . 1 1 2 . 1 . . . . . . . . . . . . Spaces Dug 381 | . . 23 . . . 1 . 1 . . 6 . . 2 20 . 3 . . . 316 . 2 . . 2 2 3 Terrain Destroyed 1371 | . 44 23 5 . 116 3 1 11 . 5 6 1 3 2 230 53 5 27 2 1 349 92 26 . 4 20 6 336 Melee 7 | . . . . . . . . 1 . . 4 . . 2 . . . . . . . . . . . . . . Projectile 284 | . . . 4 . 7 3 1 1 . . . 1 3 . 95 11 5 15 2 1 40 14 26 . 4 20 6 25 AOE 1077 | . 44 23 . . 109 . . 9 . 5 2 . . . 135 42 . 12 . . 309 78 . . . . . 309 Terrain Rammed . | . . . . . . . . . . . . . . . . . . . . . . . . . . . . . Walls Destroyed . | . . . . . . . . . . . . . . . . . . . . . . . . . . . . . Machines Disabled . | . . . . . . . . . . . . . . . . . . . . . . . . . . . . . Actions | -11 -10 -10 -10 -9 -8 -7 -7 -7 -7 -6 -6 -6 -6 -6 -6 -5 -5 -5 -5 -5 -5 -4 -4 -4 -4 -3 -3 -2 --------- Run | Jun Mat Min Exi Min Mat Fac Low Low Dat Pro Fac Low Low Zio Dee Pro Fac Ext Cet Arc Hub Fac Gar Fac DSF Res Tes Res Total 24280 | . 301 716 1738 154 794 821 1191 1519 74 565 674 751 786 1137 3342 1232 207 842 184 812 586 538 1906 4 170 1234 979 1023 Wait 5112 | . 7 16 187 1 110 50 23 104 . 6 16 18 106 48 1106 776 26 33 1 710 65 82 1201 . 15 35 208 162 Move 16779 | . 248 681 1368 145 516 701 1143 1302 74 510 583 709 644 1055 1917 354 166 702 156 81 419 322 497 4 131 1082 674 595 Hop . | . . . . . . . . . . . . . . . . . . . . . . . . . . . . . Pick Up 220 | . 13 . 27 . 20 16 4 6 . 2 8 1 7 7 26 22 5 5 6 . 5 6 9 . 3 8 5 9 Fast Attach 114 | . 3 . 5 . 13 5 . 4 . 4 4 4 1 1 11 1 . . . 2 1 10 16 . 2 7 4 16 Attach 127 | . 3 1 9 . 13 6 1 3 . 2 5 . 3 5 21 6 2 . . . 1 8 5 . 1 7 5 20 Detach 76 | . 1 . . . 2 3 . 1 . . . . 1 1 15 14 . . . 6 4 4 15 . 1 2 . 6 Swap 150 | . 3 1 6 . 9 4 10 12 . 6 13 3 . 3 13 4 . 8 1 . 17 14 5 . 1 1 10 6 Drop 208 | . 7 . 18 . 20 12 3 8 . 5 10 3 3 8 36 21 1 2 4 3 3 3 8 . 2 10 8 10 Fire 1233 | . 15 16 110 6 91 24 7 42 . 30 30 13 21 1 185 34 7 35 16 10 71 72 75 . 8 80 47 187 Melee 35 | . . . . . . . . 1 . . 5 . . 8 . . . . . . . . . . . . 14 7 Ram . | . . . . . . . . . . . . . . . . . . . . . . . . . . . . . Kick 3 | . 1 . . . . . . . . . . . . . . . . . . . . 2 . . . . . . Crush 17 | . . 1 8 2 . . . . . . . . . . . . . . . . . . . . . 2 1 3 Escape Stasis 42 | . . . . . . . . . . . . . . . . . . 10 . . . 15 12 . 4 . 1 . Rewire 144 | . . . . . . . . 28 . . . . . . . . . 47 . . . . 63 . 2 . 2 2 Trap 20 | . . . . . . . . 8 . . . . . . 12 . . . . . . . . . . . . . Miscellaneous . | . . . . . . . . . . . . . . . . . . . . . . . . . . . . . Route ------- -11/Junkyard -10/Materials (discovered 3 exits: [*Mat] / [*Min x2]) -10/Mines (discovered 3 exits: [*Mat x2] / *Exi) -10/Exiles (discovered 2 exits: [*Min x2]) -9/Mines -8/Materials -7/Factory (discovered 2 exits: *Low x2) -7/Lower Caves -7/Lower Caves (discovered 2 exits: *Fac / *Dat) -7/Data Miner -6/Proximity Caves -6/Factory (discovered 2 exits: *Fac / *Low) -6/Lower Caves -6/Lower Caves (discovered 2 exits: *Fac / *Zio) -6/Zion (discovered 2 exits: *Dee / [*Pro]) -6/Deep Caves -5/Proximity Caves -5/Factory (discovered 4 exits: Fac / Upp x2 / *Ext) -5/Extension (discovered 3 exits: *Fac x2 / *Cet) -5/Cetus (discovered 2 exits: *Fac / *Arc) -5/Archives -5/Hub_04(d) (discovered 4 exits: *Fac x4) -4/Factory (discovered 5 exits: Res x4 / Gar) -4/Garrison -4/Factory -4/DSF -3/Research (discovered 3 exits: *Res x2 / *Tes) -3/Testing -2/Research History --------- Turn | Location | Event 1 | -11/Junkyard | Discovered new exit (range 0) 1 | -11/Junkyard | Entered Materials 1 | -10/Materials | Discovered new exit (range 8) 246 | -10/Materials | Discovered new exit (range 11) 314 | -10/Materials | Build established: Mutant 416 | -10/Materials | Discovered new exit (range 15) 510 | -10/Materials | Entered Mines 855 | -10/Mines | A weapon hastily lodged in a ceiling crevice suddenly fell to the ground 893 | -10/Mines | Discovered new exit (range 7) 965 | -10/Mines | Deemed a non-threat by the Exiles lab entrance 965 | -10/Mines | Discovered new exit (range 5) 1215 | -10/Mines | Discovered new exit (range 10) 1280 | -10/Mines | Escorted by a lone wolf Derelict 1335 | -10/Mines | Learned Materials trap positions 1660 | -10/Mines | Entered Exiles 1660 | -10/Exiles | Accompanied by 3 allies 1684 | -10/Exiles | Discovered new exit (range 15) 1690 | -10/Exiles | Led the pair of lost Derelicts to a safe place 1705 | -10/Exiles | Met 8R-AWN 1731 | -10/Exiles | Met EX-HEX 1812 | -10/Exiles | Met EX-DEC 1844 | -10/Exiles | Visited The Gauntlet 2022 | -10/Exiles | Learned location of Zion (-6) 2097 | -10/Exiles | Discovered new exit (range 10) 2273 | -10/Exiles | Met EX-BIN 2293 | -10/Exiles | Aligned with FarCom system 2294 | -10/Exiles | Given EX-Vault access code 2331 | -10/Exiles | Opened EX-Vault 2339 | -10/Exiles | Found Latent Energy Streamer 2343 | -10/Exiles | Found Gui. Plasma Cannon 2350 | -10/Exiles | Found XL Autogun Array 2388 | -10/Exiles | Warned to stay clear of 0b10 Research branches 2967 | -10/Exiles | Attacked by the Exiles 3160 | -10/Exiles | Core integrity fell below 50% 3164 | -10/Exiles | Lost 8 parts (1p4n1u2w) 3185 | -10/Exiles | Core integrity fell below 20% 3197 | -10/Exiles | Destroyed 8R-AWN 3224 | -10/Exiles | Lost 3 parts (1p2w) 3224 | -10/Exiles | Found Prototype Ballistic Gun 3613 | -10/Exiles | Identified 8R-AWN's Boregun 3701 | -10/Exiles | Destroyed EX-BIN 3824 | -10/Exiles | Build established: Scavenger-Mutant 3838 | -10/Exiles | Destroyed EX-DEC 3872 | -10/Exiles | Destroyed EX-HEX 4179 | -10/Exiles | Found Prototype Device 4245 | -10/Exiles | Found Deploy-a-Sentry 4462 | -10/Exiles | Identified System Purifier 4590 | -10/Exiles | Stole four prototypes: Gui. Plasma Cannon, Latent Energy Streamer, XL Autogun Array, Deploy-a-Sentry 4590 | -10/Exiles | Entered Mines 4743 | -9/Mines | Discovered new exit (range 11) 4956 | -9/Mines | Entered Materials 4956 | -8/Materials | Evolved 4 slots: Utility x4 4957 | -8/Materials | Loaded intel: 12 trap records 5395 | -8/Materials | Discovered new exit (range 8) 6156 | -8/Materials | First assault squad dispatched 6238 | -8/Materials | System corruption reached 10% 6259 | -8/Materials | Entered Factory 6259 | -7/Factory | Evolved 2 slots: Utility x2 6760 | -7/Factory | Identified exit to Lower Caves 7487 | -7/Factory | Entered Lower Caves 7488 | -7/Lower Caves | Encountered a Warlord checkpoint 8505 | -7/Lower Caves | Discovered new exit (range 12) 9204 | -7/Lower Caves | Spotted B-75 Beast 9488 | -7/Lower Caves | Identified exit to Lower Caves 9490 | -7/Lower Caves | Entered another Lower Caves area 9490 | -7/Lower Caves | Spotted 9B-U0U(f) 9491 | -7/Lower Caves | Encountered a Master Thief 9495 | -7/Lower Caves | Latent Energy Streamer stolen by Master Thief 9583 | -7/Lower Caves | Discovered new exit (range 7) 10407 | -7/Lower Caves | Attracted the attention of an 0b10 outpost 10440 | -7/Lower Caves | Destroyed 8 combat bots 11392 | -7/Lower Caves | Found Alien Artifact 11392 | -7/Lower Caves | Identified Core Expander 11392 | -7/Lower Caves | Installed Core Expander, added new Weapon slot 11796 | -7/Lower Caves | Build established: Trapper-Mutant 11836 | -7/Lower Caves | Attracted the attention of an 0b10 checkpoint 11941 | -7/Lower Caves | Discovered new exit (range 14) 11979 | -7/Lower Caves | Identified exit to Data Miner 12014 | -7/Lower Caves | Entered Data Miner 12014 | -7/Data Miner | Accompanied by 2 allies 12014 | -7/Data Miner | Discovered new exit (range 6) 12053 | -7/Data Miner | Met Data Miner 12090 | -7/Data Miner | Learned location of Section 7 (-2) 12090 | -7/Data Miner | Acquired the access code to Warlord's prototype stash 12119 | -7/Data Miner | Received God Mode back door access code from Data Miner 12164 | -7/Data Miner | Identified exit to Proximity Caves 12166 | -7/Data Miner | Entered Proximity Caves 12166 | -6/Proximity Caves | Accompanied by 2 allies 12280 | -6/Proximity Caves | Escorted by Enhanced Grunt 12385 | -6/Proximity Caves | Attracted the attention of an 0b10 outpost 12566 | -6/Proximity Caves | System corruption reached 10% 13342 | -6/Proximity Caves | Discovered new exit (range 15) 13367 | -6/Proximity Caves | Identified exit to Factory 13370 | -6/Proximity Caves | Entered Factory 13370 | -6/Factory | Accompanied by 1 ally 13370 | -6/Factory | Evolved 2 slots: Power x1, Utility x1 14308 | -6/Factory | Incoming investigation squad redirected 14475 | -6/Factory | Lost 3 parts (1p1n1w) 14547 | -6/Factory | Discovered new exit (range 16) 14664 | -6/Factory | Identified exit to Factory 14811 | -6/Factory | Discovered new exit (range 13) 15170 | -6/Factory | Identified exit to Lower Caves 15194 | -6/Factory | Entered Lower Caves 15210 | -6/Lower Caves | Identified exit to Lower Caves 15808 | -6/Lower Caves | Build established: Trapper-Tank 16655 | -6/Lower Caves | Build established: Trapper-Mutant 17356 | -6/Lower Caves | Entered another Lower Caves area 17697 | -6/Lower Caves | Discovered exit to Factory (range 5) 18440 | -6/Lower Caves | Learned 8 Factory zone layouts 18575 | -6/Lower Caves | Encountered a Warlord checkpoint 18695 | -6/Lower Caves | Spotted LB-SW9(f) 18696 | -6/Lower Caves | Spotted 5N-4EJ(f) 18697 | -6/Lower Caves | Encountered a Master Thief 18697 | -6/Lower Caves | Encountered a Master Thief 18697 | -6/Lower Caves | Spotted FI-MZK(f) 18698 | -6/Lower Caves | Encountered a Master Thief 18701 | -6/Lower Caves | Deploy-a-Sentry stolen by Master Thief 18707 | -6/Lower Caves | 8R-AWN's Boregun stolen by Master Thief 18717 | -6/Lower Caves | System Purifier stolen by Master Thief 18719 | -6/Lower Caves | Destroyed FI-MZK(f) 18758 | -6/Lower Caves | Learned Factory terminal intel 18937 | -6/Lower Caves | Discovered new exit (range 11) 18957 | -6/Lower Caves | Identified exit to Zion 18959 | -6/Lower Caves | Entered Zion 19041 | -6/Zion | System corruption cleaned by Quarantine Array 19147 | -6/Zion | Discovered new exit (range 9) 19707 | -6/Zion | Given A8's code to call for help 19721 | -6/Zion | Given the Hacking Drone Bay 19722 | -6/Zion | Found Prototype Device 19723 | -6/Zion | Identified Hacking Drone Bay 19753 | -6/Zion | Identified exit to Deep Caves 20522 | -6/Zion | Found Prototype Launcher 20522 | -6/Zion | Identified Gui. Missile Launcher 20624 | -6/Zion | Found Relay Coupler [Programmer] 20630 | -6/Zion | Found Relay Coupler [Programmer] 20633 | -6/Zion | Found Relay Coupler [Programmer] 20741 | -6/Zion | Saw the warning signs outside the Deep Caves entrance 20746 | -6/Zion | Entered Deep Caves 21517 | -6/Deep Caves | Build established: Scavenger-Mutant 21719 | -6/Deep Caves | Z-Facility disabled 22291 | -6/Deep Caves | Found Prototype Protection 22291 | -6/Deep Caves | Identified Zio. Weapon Casing 22379 | -6/Deep Caves | Found Zio. Weapon Casing 23029 | -6/Deep Caves | Discovered new exit (range 6) 23981 | -6/Deep Caves | Found Prototype Protection 23981 | -6/Deep Caves | Identified Zio. Heavy Carapace 23990 | -6/Deep Caves | Found Zio. Heavy Carapace 24003 | -6/Deep Caves | Found Zio. Heavy Carapace 24367 | -6/Deep Caves | Spotted as-61097 24394 | -6/Deep Caves | Destroyed as-61097 24399 | -6/Deep Caves | Found GOLEM Unit 25599 | -6/Deep Caves | Spotted as-69465 25639 | -6/Deep Caves | Destroyed as-69465 25643 | -6/Deep Caves | Found GOLEM Unit 25822 | -6/Deep Caves | Triggered Deep Caves wall 25829 | -6/Deep Caves | Exposed GOLEM chamber 25838 | -6/Deep Caves | Spotted AS-28064 25844 | -6/Deep Caves | Destroyed AS-28064 25850 | -6/Deep Caves | Spotted AS-19068 25862 | -6/Deep Caves | Destroyed AS-19068 25868 | -6/Deep Caves | Destroyed 38 combat bots 25976 | -6/Deep Caves | Found GOLEM Unit 26391 | -6/Deep Caves | Found GOLEM Unit 26397 | -6/Deep Caves | Found GOLEM Unit 26404 | -6/Deep Caves | Found GOLEM Unit 26544 | -6/Deep Caves | Identified exit to Proximity Caves 26600 | -6/Deep Caves | Entered Proximity Caves 26602 | -5/Proximity Caves | Spotter reported a threat 26603 | -5/Proximity Caves | Spotter reported a threat 26622 | -5/Proximity Caves | Spotted B-75 Beast 26680 | -5/Proximity Caves | Core integrity fell below 50% 26689 | -5/Proximity Caves | Destroyed B-75 Beast 26692 | -5/Proximity Caves | Build established: Mutant 26707 | -5/Proximity Caves | Lost 3 parts (2u1w) 26757 | -5/Proximity Caves | Spotter reported a threat 27061 | -5/Proximity Caves | Build established: Golem 27090 | -5/Proximity Caves | Unaware initiated a cargo recovery operation 27267 | -5/Proximity Caves | Discovered exit to Factory (range 10) 28272 | -5/Proximity Caves | Entered Factory 28272 | -5/Factory | Evolved 2 slots: Propulsion x2 28273 | -5/Factory | Identified exit to Upper Caves 28274 | -5/Factory | Identified exit to Extension 28274 | -5/Factory | Identified exit to Factory 28275 | -5/Factory | Loaded intel: 27 terminal locations 28568 | -5/Factory | Incoming investigation squad redirected 28572 | -5/Factory | Search patrols dispatched 28646 | -5/Factory | Entered Extension 28737 | -5/Extension | Rescued a captive Derelict 29046 | -5/Extension | Rescued a captive Derelict 29089 | -5/Extension | Rescued a captive Derelict 29090 | -5/Extension | Rescued a captive Derelict 29115 | -5/Extension | Rescued a captive Derelict 29589 | -5/Extension | Spotted B-75 Beast 29602 | -5/Extension | Allies destroyed B-75 Beast 29621 | -5/Extension | Spotted B-75 Beast 29658 | -5/Extension | Destroyed B-75 Beast 29676 | -5/Extension | Lost 3 parts (3u) 29845 | -5/Extension | Rescued A7 30047 | -5/Extension | Energy Cycler disabled 30047 | -5/Extension | Rescued a captive Derelict 30052 | -5/Extension | Rescued a captive Derelict 30056 | -5/Extension | Rescued a captive Derelict 30193 | -5/Extension | Discovered new exit (range 6) 30216 | -5/Extension | Identified exit to Cetus 30228 | -5/Extension | Entered Cetus 30228 | -5/Cetus | Accompanied by 6 allies (A7) 30233 | -5/Cetus | Acquired a Cetus Manufacturing Module code from A7 30254 | -5/Cetus | Spotted Cetus Guard 30254 | -5/Cetus | Spotted Cetus Guard 30257 | -5/Cetus | Spotted Cetus Guard 30257 | -5/Cetus | Spotted Cetus Guard 30262 | -5/Cetus | Allies destroyed Cetus Guard 30268 | -5/Cetus | Allies destroyed Cetus Guard 30268 | -5/Cetus | Allies destroyed Cetus Guard 30269 | -5/Cetus | Allies destroyed Cetus Guard 30362 | -5/Cetus | Escorted A7 to Cetus Mainframe 30384 | -5/Cetus | Discovered new exit (range 16) 30415 | -5/Cetus | Spotted Cetus Guard 30415 | -5/Cetus | Spotted Cetus Guard 30421 | -5/Cetus | Spotted Cetus Guard 30423 | -5/Cetus | Spotted Cetus Guard 30426 | -5/Cetus | Allies destroyed Cetus Guard 30434 | -5/Cetus | Allies destroyed Cetus Guard 30435 | -5/Cetus | Destroyed Cetus Guard 30439 | -5/Cetus | Allies destroyed Cetus Guard 30447 | -5/Cetus | Discovered exit to Factory (range 15) 30460 | -5/Cetus | Met Revision 17 30526 | -5/Cetus | Extracted ID and sensor layout for unrecognized location from A7's data core 30574 | -5/Cetus | Identified exit to Archives 30578 | -5/Cetus | Entered Archives 30578 | -5/Archives | Accompanied by 3 allies 31457 | -5/Archives | Discovered new exit (range 15) 31484 | -5/Archives | Identified exit to Hub_04(d) 31486 | -5/Archives | Entered Hub_04(d) 31486 | -5/Hub_04(d) | Accompanied by 2 allies 31610 | -5/Hub_04(d) | Spotted B-75 Beast 31651 | -5/Hub_04(d) | Discovered exit to Factory (range 3) 31677 | -5/Hub_04(d) | Incoming assault squad redirected 32587 | -5/Hub_04(d) | Network Hub disabled 32587 | -5/Hub_04(d) | Network Hub disabled 32600 | -5/Hub_04(d) | Entered Factory 32600 | -4/Factory | Evolved 2 slots: Propulsion x1, Utility x1 32631 | -4/Factory | Identified exit to Research 33330 | -4/Factory | Garrison activated, responded to threat 33369 | -4/Factory | Lost 6 parts (2p3u1w) 33410 | -4/Factory | Lost 4 parts (2n2w) 33446 | -4/Factory | System corruption reached 10% 33553 | -4/Factory | Garrison activated, responded to threat 33596 | -4/Factory | Build established: Scavenger-Mutant 33602 | -4/Factory | Core integrity fell below 50% 33603 | -4/Factory | Identified exit to Garrison 33603 | -4/Factory | Entered Garrison 33615 | -4/Garrison | Lost 9 parts (2p2n2u3w) 33933 | -4/Garrison | Build established: Scavenger-Golem 34276 | -4/Garrison | Build established: Golem 34284 | -4/Garrison | Spotted B-86 Titan 34318 | -4/Garrison | Triggered checkpoint 35106 | -4/Garrison | Destroyed B-86 Titan 35280 | -4/Garrison | Triggered checkpoint 35290 | -4/Garrison | Spotted B-86 Titan 35296 | -4/Garrison | Discovered new exit (range 10) 35328 | -4/Garrison | Core integrity fell below 20% 35333 | -4/Garrison | Identified exit to Factory 35389 | -4/Garrison | Destroyed B-86 Titan 35398 | -4/Garrison | Lost 3 parts (3u) 35740 | -4/Garrison | Installed Relay Interface Framework 35773 | -4/Garrison | Build established: Scavenger-Tank 35788 | -4/Garrison | Garrison Relay disabled 35910 | -4/Garrison | Triggered checkpoint 35936 | -4/Garrison | Triggered checkpoint 35974 | -4/Garrison | Garrison Relay disabled 36105 | -4/Garrison | Build established: Mutant 36197 | -4/Garrison | Entered Factory 36197 | -4/Factory | Accompanied by 4 allies 36204 | -4/Factory | Identified exit to DSF 36204 | -4/Factory | Entered DSF 36204 | -4/DSF | Accompanied by 4 allies 36252 | -4/DSF | Additional patrols routed to DSF 36441 | -4/DSF | Sterilization system engaged 36461 | -4/DSF | Ambient heat levels rising (+10) 36476 | -4/DSF | Ambient heat levels rising (+10) 36488 | -4/DSF | Discovered exit to Research (range 14) 36491 | -4/DSF | Ambient heat levels rising (+10) 36506 | -4/DSF | Ambient heat levels rising (+10) 36521 | -4/DSF | Ambient heat levels rising (+10) 36536 | -4/DSF | Ambient heat levels rising (+10) 36551 | -4/DSF | Ambient heat levels rising (+10) 36558 | -4/DSF | Entered Research 36558 | -3/Research | Accompanied by 1 ally 36558 | -3/Research | Evolved 2 slots: Propulsion x1, Utility x1 36580 | -3/Research | Build established: Scavenger-Mutant 36758 | -3/Research | Revision forces began assault on 0b10 36799 | -3/Research | Met up with Revision 17++ 37258 | -3/Research | Research terminal network offline 37362 | -3/Research | Spotted B-86 Titan 37373 | -3/Research | Destroyed B-86 Titan 37503 | -3/Research | Spotted B-86 Titan 37686 | -3/Research | Found Quantum Capacitor 37764 | -3/Research | Build established: Bothacker-Mutant 37781 | -3/Research | Discovered new exit (range 12) 37797 | -3/Research | Identified exit to Research 37860 | -3/Research | Found Antimissile System 37993 | -3/Research | Discovered exit to Research (range 13) 38371 | -3/Research | Spotted Striker 38382 | -3/Research | Destroyed Striker 38428 | -3/Research | Discovered new exit (range 5) 38434 | -3/Research | Identified exit to Testing 38447 | -3/Research | Destroyed Revision 17++ 38448 | -3/Research | Entered Testing 38755 | -3/Testing | Fabricated Combat Drone Bay? 38844 | -3/Testing | Found Prototype Launcher 38844 | -3/Testing | Identified Z-bomb Delivery System 38922 | -3/Testing | Found Prototype Protection 39038 | -3/Testing | Master 8e assimilated hostile G-67 Veteran 39101 | -3/Testing | Spotted Striker 39274 | -3/Testing | Spotted PD-GXSMDSOOO7 39280 | -3/Testing | Rewired PD-GXSMDSOOO7 39368 | -3/Testing | Master 8f assimilated hostile H-77 Assassin 39389 | -3/Testing | Master 8f assimilated hostile G-67 Veteran 39496 | -3/Testing | Found Prototype Energy Gun 39512 | -3/Testing | P-80 Master assimilated allied Veteran 8b 39791 | -3/Testing | Found Prototype Energy Cannon 39886 | -3/Testing | Scanned by Researcher 39904 | -3/Testing | Entered Research 39904 | -2/Research | Accompanied by 1 ally 39904 | -2/Research | Evolved 2 slots: Power x1, Utility x1 40154 | -2/Research | First assault squad dispatched 40226 | -2/Research | Identified Hyp. EM Gauss Rifle 40239 | -2/Research | Incoming assault squad redirected 40440 | -2/Research | P-80 Master assimilated allied Enforcer 9d 40538 | -2/Research | Destroyed 7 combat bots 40640 | -2/Research | Spotted B-90 Cyclops 40678 | -2/Research | Identified Potential Cannon 40701 | -2/Research | Destroyed B-90 Cyclops 40727 | -2/Research | Lost 3 parts (1p1n1w) 40784 | -2/Research | Destroyed 7 combat bots 40831 | -2/Research | Identified SHELL Armor 40932 | -2/Research | Incoming assault squad redirected 41270 | -2/Research | Destroyed 14 combat bots 41277 | -2/Research | Lost 5 parts (1p1n2u1w) 41399 | -2/Research | System corruption reached 10% 41421 | -2/Research | Incoming assault squad redirected 41424 | -2/Research | Self-destructed Last Messages --------------- Erasing system data. Installing primary routines, ETC: 6. 41413_ System corrupted: Matter fused (-10). 41417_ Destroyed Adv. Weight Redist. System. 41418_ A-15 Conveyor bypasses jamming via Unknown Processor. 41418_ A-15 Conveyor calls for reinforcements. 41418_ ALERT: Hostile activity reported, dispatching reinforcements to area. 41418_ A-15 Conveyor distress signal jammed. 41419_ W-44 Eye distress signal jammed. 41420_ Activated siege mode. 41420_ W-44 Eye distress signal jammed. 41421_ Power failure, Lgt. Quantum Reactor shutdown. 41421_ ALERT: Higher priority target reported, redirecting assault. 41421_ W-44 Eye distress signal jammed. 41422_ Power failure, Lgt. Quantum Reactor shutdown. 41422_ W-44 Eye distress signal jammed. 41423_ Slug penetrates U-05 Engineer. 41423_ U-05 Engineer destroyed. 41423_ Lgt. Quantum Reactor destroyed. Map ----- +----------------------------------------------------+ | ?????????????????????????????????????????????????? | | ?????????????????????????????????????????????????? | | ?????????????????????????????????????????????????? | | ?????????????????????????????????????????????????? | | ?????????????????????????????????????????????????? | | ?????????????????????????????????????????????????? | | ?????????????????????????????????????????????????? | | ?????????????????????????????????????????????????? | | ?????????????????????????????????????????????????? | | ?????????????????????????????????????????????????? | | ?????????????????????????#h#?????????????????????? | | ??????????#?????????####? ?????????????????????? | | ??????????# ? ?????? #? ?????????????????????? | | ??????????# ???? #? ! ?????????????????????? | | ??????????# """ ##|%#?????????????????????? | | ??????????# """ ## =##????????????????????? | | ??????????# """ # #????????????????????? | | ??????????#"" + A #????????????????????? | | ??????????#"" # #????????????????????? | | ??????????#"T """ # #????????????????????? | | ??????????#"" ] """ # #????????????????????? | | ??????????#"" """ # ##???????????????????? | | ??????????# # % # #??????????????????? | | ??????????# = # = # ??????????????????? | | ??????????#######+####=# # ??????????????????? | | ?????????# ! #p@ # #?????????????????? | | ?????????# *+ = # #?????????????????? | | ?????????# #[ %# #######????????????? | | ?????????# !! # =% # ?#??????????? | | ?????????# !! !# %=# ? #??????????? | | ?????????# !! ! ; =%#! """" #??????????? | | ?????????############### # """ ! #??????????? | | ????????????????????#"##w # "" #??????????? | | ?????????????????? ? # %+ "" #??????????? | | ?????????????????? # = %#! #??????????? | | ??????????????????""" #! #[ #??????????? | | ???????????????? ?""" #! g ####################+# | | ??????????????!! """ #=g !A= [ | | ????????????????? /p = | | ????????????? # | | ?????????????? """ # | | ?????????????? """ # #############+######+# | | ??????????????????""" ?# #????????????????? | | ?????????????????? ??# #???????????????# | | ?????????????????? ??# #???????????????#[ | | ??????????????######???# #???????????????# | | ???????????# # #???# #???????????????# """ | | ????????? #??# #???????????????# """ | | ???????## #??# #???????????????# """ | | ???????# #??# #???????????????# | +----------------------------------------------------+ Best States ------------- Heat Dissipation 100 Coolant Potential 80 Energy Generation 65 Energy Capacity 2050 Matter Stores 300 Matter Capacity 300 Sight Range 16 Robot Scan Range 16 Terrain Scan Density 10 Jamming Range 16 Power Amplification 20 Additional Mass Support 20 Armor Coverage 2250 Resistance: KI 15 Resistance: TH 15 Resistance: EX 15 Resistance: EM 15 Resistance: I 15 Resistance: S 15 Resistance: P 15 Weapon Shielding 100 Point Defense Rating 240 Weapon Cycling 25 Phase Shifting 10 Evasion (%) 50 Targeting Accuracy 8 Launcher Accuracy 40 Recoil Reduction 6 Particle Charging 20 Offensive Hacking 21 Relay Coupler Types 2 Relay Coupler Value 110 Authchip Count 2 Trap Extractor Capacity 4 Item Schematics ----------------- Huge Storage Unit | -10/Materials | Hacked Combat Drone Bay | -7/Data Miner | Free Lgt. Regenerative Plating | -7/Data Miner | Free Biomechanical Wings | -7/Data Miner | Free Gravity Neutralizer | -7/Data Miner | Free Linear Gravjet | -7/Data Miner | Free Imp. Surge Thruster | -7/Data Miner | Free Cld. Plasma Cannon | -7/Data Miner | Free Adv. Transmission Jammer | -7/Data Miner | Free Point Defense System | -7/Data Miner | Free Hyp. Coil Gun | -7/Data Miner | Free Antigrav System | -7/Data Miner | Free Imp. Recalibrator | -7/Data Miner | Free Bore Cannon | -6/Zion | Archive Lrn. Proton Cannon | -6/Zion | Archive Plasma Flamer | -6/Zion | Archive Hvy. Phase Cannon | -6/Zion | Archive Enh. Optical Array | -6/Zion | Archive Fission Core | -6/Zion | Archive Proton Cannon | -6/Zion | Archive Imp. Dynamic Insulation System | -6/Zion | Archive Hvy. Plasma Cannon | -6/Zion | Archive Lgt. Antimatter Reactor | -6/Zion | Archive Impulse Thruster | -6/Zion | Archive Imp. Hacking Suite | -6/Zion | Archive Tiamat Missile Launcher | -6/Zion | Archive Ionic Axe | -3/Testing | Archive Lrn. Phase Cannon | -3/Testing | Archive Neutron Missile Launcher | -3/Testing | Archive Adv. Myomer Leg | -3/Testing | Archive Tri-rail Accelerator | -3/Testing | Archive Cld. Impulse Thruster | -3/Testing | Archive Hvy. Tesla Rifle | -3/Testing | Archive Cld. Nuclear Pulse Thruster | -3/Testing | Archive Robot Schematics ------------------ B-48 Gladiator | -7/Data Miner | Free R-10 Processor | -7/Data Miner | Free G-47 Trooper | -7/Data Miner | Free G-50 Soldier | -7/Data Miner | Free S-27 Virus | -7/Data Miner | Free H-55 Commando | -6/Zion | Archive H-66 Slayer | -6/Zion | Archive A-15 Conveyor | -6/Zion | Archive B-74 Champion | -3/Testing | Archive R-06 Scavenger | -3/Testing | Archive M-30 Cleanser | -3/Testing | Archive K-01 Serf | -3/Testing | Archive Fabricated ------------ Combat Drone Bay | x1 | -3/Testing | Authchip Alien Tech Used ----------------- Core Expander Achievements -------------- None Challenges ------------ None Game ------ Seed CloakInsulationEngine Manual? 0 Play Time 03:08:41 Cumulative 355.9 hours Start 2023.05.24 @ 00:30:01 End 2023.05.24 @ 16:50:24 Sessions 5 Manual Loads 0 Difficulty Rogue Special Mode None Game No. 506 Rogue 479 Adventurer 4 Explorer 23 Win Type - Total 19 Types 14/0/2/2/1/0/0/0/0 Lore% 81 Gallery% 93 Achievement% 82 Wizard Run 0 Options --------- ASCII 0 Keyboard 1 Movement Numpad Keybinds 0 Fullscreen 1 Font 18/SmallcapsGlow Map View 76x50 Tactical HUD 1 Map Filters NONE Filters NONE Steam 1 RUN: 70614e9f-5e88-4e09-8787-fb4bd422ba14